bitfinex-derivatives/quotes_SOLF0:USTF0_20250520
["timestamp","ask_amount","ask_price","bid_price","bid_amount"]
[1747771701802,0.03877878,167.62,167.58,0.03948331]
[1747771702106,0.03877878,167.62,167.58,6.00428331]
[1747771702295,0.03877878,167.62,167.58,0.03948331]
[1747771702803,5.9646,167.59,167.58,0.03948331]
[1747771703906,5.9662,167.55,167.53,105.58]
[1747771704204,5.9662,167.55,167.49,105.58]
[1747771704798,5.9664,167.54,167.51,5.9672]
[1747771705001,6.00992762,167.54,167.51,5.9672]
[1747771705208,0.04352762,167.54,167.51,5.9672]
[1747771706106,6.00992762,167.54,167.51,5.9672]
[1747771706609,6.00992762,167.54,167.5,0.04240892]
[1747771706610,6.00992762,167.54,167.52,5.967]
[1747771707312,0.04352762,167.54,167.52,5.967]
[1747771709907,0.04352762,167.54,167.5,0.04240892]
[1747771710610,6.01002762,167.54,167.51,5.9672]
[1747771711010,0.04352762,167.54,167.5,0.04240892]
[1747771711715,0.04352762,167.54,167.53,5.9667]
[1747771715620,105.58,167.62,167.58,5.9647]
[1747771716216,5.9639,167.61,167.58,5.9647]
[1747771716416,105.58,167.62,167.54,105.58]
[1747771716715,27.78456931,167.68,167.54,105.58]
[1747771716716,0.03876481,167.6,167.56,0.04102717]
[1747771716918,0.03876481,167.6,167.56,0.04108893]
[1747771717121,0.03876481,167.6,167.59,5.9643]
[1747771717420,0.03876481,167.6,167.59,111.5443]
[1747771718614,0.03876481,167.6,167.59,105.58]
[1747771718816,0.03876481,167.6,167.56,0.04108893]
[1747771719120,6.00326481,167.6,167.57,5.9651]
[1747771720020,6.00326481,167.6,167.58,5.9649]
[1747771720315,5.9646,167.59,167.56,0.04108893]
[1747771722219,6.00316481,167.6,167.56,0.04108893]
[1747771722419,0.03876481,167.6,167.56,0.04108893]
[1747771722622,0.03876481,167.6,167.59,5.9646]
[1747771723820,11.9191,167.74,167.56,11.97208893]
[1747771724121,115.59634564,167.72,167.57,85.04]
[1747771724319,5.961,167.7,167.57,87.0913]
[1747771724726,5.961,167.7,167.57,99.0218]
[1747771724924,0.04562603,167.65,167.62,0.04331302]
[1747771725134,0.04562603,167.65,167.62,105.28331302]
[1747771726421,0.04562603,167.65,167.64,5.9628]
[1747771726616,0.04562603,167.65,167.62,0.04331302]
[1747771726823,15.90699534,167.65,167.58,105.22]
[1747771727321,15.90699534,167.65,167.55,2.1097]
[1747771727622,4.1637,167.64,167.54,105.22]
[1747771727828,15.89956275,167.61,167.57,0.04406228]
[1747771728119,5.9665,167.54,167.5,5.9677]
[1747771728518,15.86136931,167.57,167.5,5.9677]
[1747771728921,5.9666,167.54,167.52,0.04289404]
[1747771729228,0.0381425,167.55,167.52,0.04289404]
[1747771729623,5.9667,167.53,167.52,0.04289404]
[1747771730122,15.86136931,167.53,167.48,105.22]
[1747771730320,15.86136931,167.53,167.44,105.24]
[1747771730528,121.10136931,167.53,167.44,105.24]
[1747771730724,105.24,167.53,167.44,105.24]
[1747771731029,0.03924277,167.5,167.47,0.04240356]
[1747771731328,5.9685,167.48,167.47,0.04240356]
[1747771732127,0.03924277,167.5,167.4,105.26]
[1747771732335,105.26,167.48,167.4,105.26]
[1747771733140,5.9702,167.44,167.42,0.04295403]
[1747771733547,0.03788173,167.46,167.42,0.04295403]
[1747771734129,107.3708,167.52,167.42,0.04295403]
[1747771734338,105.26,167.52,167.42,0.04295403]
[1747771734640,111.2273,167.52,167.47,5.9686]
[1747771734943,105.26,167.52,167.47,5.9686]
[1747771735240,0.04225124,167.51,167.48,0.03973237]
[1747771736746,6.00995124,167.51,167.48,0.03973237]
[1747771738141,5.9681,167.49,167.48,0.03973237]
[1747771738443,105.28,167.5,167.39,107.2824]
[1747771738646,5.9696,167.45,167.41,5.9709]
[1747771739249,107.3928,167.5,167.39,107.2824]
[1747771739446,0.04187716,167.46,167.43,0.04489474]
[1747771741442,0.04187716,167.46,167.43,6.01499474]
[1747771742553,0.04187716,167.46,167.43,0.04489474]
[1747771743643,0.04187716,167.46,167.45,5.9696]
[1747771744951,515.54,167.6,167.44,105.3]
[1747771745143,5.9661,167.55,167.44,107.3692]
[1747771745342,105.3,167.57,167.44,107.3692]
[1747771745541,105.3,167.57,167.47,5.9686]
[1747771745850,5.9677,167.51,167.47,5.9686]
[1747771746052,5.9677,167.51,167.5,0.03897892]
[1747771746252,6.01102246,167.52,167.49,0.04216912]
[1747771746554,0.04382246,167.52,167.49,0.04216912]
[1747771747753,0.04382246,167.52,167.41,5.971]
[1747771747754,5.9698,167.45,167.41,5.971]
[1747771747953,105.3,167.46,167.36,67.90597381]
[1747771748154,25.86986186,167.5,167.36,67.90597381]
[1747771748352,5.9691,167.47,167.36,67.90597381]
[1747771748549,105.3,167.48,167.36,67.90597381]
[1747771748751,0.03843715,167.44,167.4,0.04485155]
[1747771750052,0.03843715,167.44,167.43,5.9703]
[1747771751458,0.03843715,167.44,167.41,5.9709]
[1747771752050,0.03843715,167.44,167.4,0.04485155]
[1747771752855,0.03843715,167.44,167.41,5.9709]
[1747771753061,0.03843715,167.44,167.4,0.04485155]
[1747771753954,0.03843715,167.44,167.42,5.9703]
[1747771754757,0.03843715,167.44,167.43,5.9703]
[1747771760154,0.03843715,167.44,167.4,104.98485155]
[1747771760155,104.94,167.52,167.4,104.98485155]
[1747771760351,7.9198,167.53,167.43,15.92671047]
[1747771760554,7.9198,167.53,167.44,1.9989]
[1747771760752,7.9198,167.53,167.5,5.9676]
[1747771761155,7.96106959,167.53,167.5,6.01085281]
[1747771761359,0.04126959,167.53,167.52,5.9671]
[1747771765155,0.04126959,167.53,167.5,0.04325281]
[1747771765661,5.9674,167.51,167.5,0.04325281]
[1747771766364,0.04126959,167.53,167.5,0.04325281]
[1747771766859,6.00816959,167.53,167.5,6.01075281]
[1747771768065,0.04126959,167.53,167.51,5.9673]
[1747771768453,0.04126959,167.53,167.5,0.04325281]
[1747771769163,0.04126959,167.53,167.51,5.9674]
[1747771769357,0.04126959,167.53,167.5,0.04325281]
[1747771770661,104.92,167.61,167.51,104.92]
[1747771771062,5.9653,167.57,167.54,5.9661]
[1747771771562,5.9653,167.57,167.54,0.04570666]
[1747771771563,0.03904525,167.57,167.54,0.04570666]
[1747771781475,104.5,167.67,167.54,21.93241713]
[1747771781662,108.7218,167.69,167.55,1.9142]
[1747771781855,108.7218,167.69,167.56,104.5]
[1747771782062,4.2218,167.69,167.56,104.5]
[1747771782261,4.2218,167.69,167.57,2.0781]
[1747771782464,0.04139848,167.65,167.61,0.04172594]
[1747771782664,0.04139848,167.65,167.61,104.54172594]
[1747771791896,0.04139848,167.65,167.62,2.0165]
[1747771796097,0.04139848,167.65,167.61,104.54172594]
[1747771796603,0.04139848,167.65,167.61,120.46843641]
[1747771798706,4.1499,167.74,167.61,120.46843641]
[1747771798908,4.1499,167.74,167.61,120.42671047]
[1747771799906,0.04022677,167.69,167.66,0.04124653]
[1747771800108,0.04022677,167.69,167.67,104.44]
[1747771801315,1.9843,167.78,167.67,104.44]
[1747771801500,1.9843,167.78,167.69,9.91925015]
[1747771801810,1.9843,167.78,167.68,1.9256]
[1747771801999,3.985,167.83,167.69,9.91925015]
[1747771802201,1.9806,167.82,167.69,9.91925015]
[1747771802400,0.04327241,167.78,167.74,0.04243488]
[1747771807104,0.04327241,167.78,167.77,5.9582]
[1747771808812,0.04327241,167.78,167.76,5.9584]
[1747771809315,0.04327241,167.78,167.74,6.00153488]
[1747771809611,6.00127241,167.78,167.74,6.00153488]
[1747771811605,6.00127241,167.78,167.74,0.04243488]
[1747771812215,0.04327241,167.78,167.74,6.00133488]
[1747771812608,6.00117241,167.78,167.74,6.00133488]
[1747771813313,5.9582,167.77,167.74,6.00133488]
[1747771813715,0.04327241,167.78,167.75,5.9589]
[1747771814015,0.04327241,167.78,167.74,0.04243488]
[1747771814408,5.9584,167.77,167.74,6.00143488]
[1747771814610,0.04327241,167.78,167.74,6.00143488]
[1747771814911,0.04327241,167.78,167.74,0.04243488]
[1747771815814,6.00137241,167.78,167.75,5.9589]
[1747771816917,0.04327241,167.78,167.77,5.9582]
[1747771817613,0.04327241,167.78,167.76,5.9584]
[1747771817813,0.04327241,167.78,167.74,0.04243488]
[1747771818217,5.9587,167.76,167.74,0.04243488]
[1747771819215,0.04327241,167.78,167.74,0.04243488]
[1747771819621,5.9584,167.77,167.74,6.00143488]
[1747771820422,15.84687556,168.04,167.82,15.84687556]
[1747771820610,3.11055882,167.98,167.84,15.84687556]
[1747771820810,4.1856,167.95,167.85,103.96]
[1747771821010,4.1856,167.95,167.76,15.84687556]
[1747771821011,103.96,167.94,167.71,17.92]
[1747771821304,103.96,167.94,167.83,0.03971459]
[1747771821305,5.9526,167.93,167.83,0.03971459]
[1747771821512,103.96,167.94,167.86,0.04363131]
[1747771821710,103.96,167.94,167.88,0.03814559]
[1747771821918,103.96,167.94,167.75,515.0]
[1747771822118,15.84687556,167.93,167.76,103.94]
[1747771822417,15.84952676,167.93,167.76,103.94]
[1747771822725,119.80952676,167.94,167.76,103.94]
[1747771822912,0.03783023,167.87,167.83,0.03854963]
[1747771823111,0.03783023,167.87,167.83,0.04185226]
[1747771823316,4.16563023,167.87,167.83,0.04185226]
[1747771824619,5.955,167.86,167.83,0.04185226]
[1747771824819,4.16563023,167.87,167.83,0.04185226]
[1747771825731,10.12053023,167.87,167.83,0.04185226]
[1747771825912,4.16563023,167.87,167.83,0.04185226]
[1747771826418,4.16563023,167.87,167.76,103.94]
[1747771826624,4.1278,167.87,167.76,103.94]
[1747771826924,4.1278,167.87,167.77,5.9581]
[1747771827224,4.1278,167.87,167.76,103.94]
[1747771827429,5.9980395,167.83,167.8,0.03838852]
[1747771827628,0.0418395,167.83,167.8,0.03838852]
[1747771827931,5.9567,167.82,167.8,0.03838852]
[1747771828221,0.0418395,167.83,167.8,0.03838852]
[1747771829225,5.9568,167.81,167.8,0.03838852]
[1747771829429,0.0418395,167.83,167.76,103.94]
[1747771829928,5.9577,167.79,167.76,103.94]
[1747771830232,4.1278,167.87,167.77,5.9582]
[1747771830428,0.04487768,167.84,167.8,0.04306287]
[1747771831126,5.9568,167.81,167.8,0.04306287]
[1747771831922,5.9586,167.76,167.72,103.94]
[1747771832414,2.0047,167.8,167.72,103.94]
[1747771832615,5.9585,167.77,167.72,109.8997]
[1747771832828,5.9585,167.77,167.72,103.94]
[1747771833029,0.04492908,167.76,167.73,0.04369245]
[1747771834027,0.04492908,167.76,167.75,5.9589]
[1747771834417,2.0047,167.8,167.73,0.04369245]
[1747771835120,2.0047,167.8,167.78,5.9575]
[1747771835430,2.0047,167.8,167.73,0.04369245]
[1747771835431,2.0047,167.8,167.77,0.04353154]
[1747771835730,2.0047,167.8,167.78,5.9578]
[1747771835929,2.0047,167.8,167.77,0.04353154]
[1747771836433,2.0047,167.8,167.78,5.9578]
[1747771836729,2.0047,167.8,167.77,0.04353154]
[1747771837135,2.0047,167.8,167.79,5.9575]
[1747771838735,0.04143539,167.81,167.8,5.9571]
[1747771839931,1.9102,167.85,167.84,5.9557]
[1747771840234,1.9102,167.85,167.78,119.78952676]
[1747771840434,1.9102,167.85,167.83,5.9559]
[1747771840739,1.9102,167.85,167.78,119.78952676]
[1747771840924,0.03761305,167.83,167.8,0.04344244]
[1747771841342,0.03761305,167.83,167.82,5.9564]
[1747771845531,0.03761305,167.83,167.8,0.04344244]
[1747771846639,0.03761305,167.83,167.82,5.9564]
[1747771855438,1.9461,167.89,167.88,5.9543]
[1747771856034,1.9461,167.89,167.87,5.9545]
[1747771856536,1.9461,167.89,167.86,0.04221313]
[1747771857041,5.955,167.86,167.84,5.9556]
[1747771857241,1.9461,167.89,167.84,5.9556]
[1747771857743,5.9549,167.87,167.84,5.9556]
[1747771858146,5.9549,167.87,167.84,5.9957329]
[1747771858344,5.9544,167.88,167.84,0.0401329]
[1747771858840,5.9544,167.88,167.85,5.9552]
[1747771859348,5.9544,167.88,167.86,5.955]
[1747771859538,7.9001,167.89,167.84,0.0401329]
[1747771859740,1.9461,167.89,167.84,0.0401329]
[1747771860043,1.9461,167.89,167.88,5.9543]
[1747771860251,1.9461,167.89,167.84,0.0401329]
[1747771860546,1.9461,167.89,167.87,5.9544]
[1747771860750,1.9461,167.89,167.84,0.0401329]
[1747771861551,1.9461,167.89,167.88,5.9543]
[1747771865541,1.99453915,167.9,167.88,5.9543]
[1747771865742,1.99453915,167.9,167.89,5.9539]
[1747771865945,0.03873915,167.9,167.88,0.03901645]
[1747771866142,0.03873915,167.9,167.83,103.66]
[1747771866445,5.9545,167.88,167.85,5.9551]
[1747771866946,0.03873915,167.9,167.84,5.9556]
[1747771867241,5.9548,167.87,167.85,0.04346068]
[1747771867550,5.9548,167.87,167.85,5.99866068]
[1747771868447,0.03873915,167.9,167.85,0.04346068]
[1747771869143,5.9547,167.87,167.85,0.04346068]
[1747771871052,5.9543,167.88,167.85,5.99866068]
[1747771871350,0.03873915,167.9,167.85,0.04346068]
[1747771871654,0.03873915,167.9,167.89,5.9539]
[1747771874049,0.03873915,167.9,167.88,103.4019]
[1747771875261,0.03873915,167.9,167.89,5.9539]
[1747771877855,1.03656266,168.08,167.89,5.96]
[1747771878156,2.1036,168.01,167.92,9.90389293]
[1747771878357,2.1036,168.01,167.93,103.42]
[1747771878858,0.04227056,167.99,167.95,0.04389807]
[1747771879552,0.04227056,167.99,167.98,5.9507]
[1747771880257,0.04227056,167.99,167.98,97.4067]
[1747771880658,0.04227056,167.99,167.98,103.3574]
[1747771881157,0.04227056,167.99,167.98,97.4067]
[1747771881459,0.04227056,167.99,167.98,91.4347]
[1747771881844,0.04227056,167.99,167.95,103.42389807]
[1747771882049,5.99277056,167.99,167.96,5.9511]
[1747771882857,5.99277056,167.99,167.97,5.9511]
[1747771883056,0.04227056,167.99,167.97,5.9511]
[1747771883458,0.04227056,167.99,167.98,5.9507]
[1747771886748,0.04227056,167.99,167.97,5.951]
[1747771887962,5.99267056,167.99,167.96,5.9513]
[1747771888157,0.04227056,167.99,167.95,103.42389807]
[1747771888763,0.04227056,167.99,167.97,5.9509]
[1747771889259,5.99267056,167.99,167.96,5.9513]
[1747771889466,0.04227056,167.99,167.95,103.42389807]
[1747771889762,5.9514,167.96,167.95,103.42389807]
[1747771889960,5.9514,167.96,167.93,5.9523]
[1747771890863,5.9514,167.96,167.94,5.9521]
[1747771891361,5.99495623,167.97,167.95,5.9518]
[1747771891863,5.99495623,167.97,167.94,5.952]
[1747771892663,0.04375623,167.97,167.95,5.9518]
[1747771893158,0.04375623,167.97,167.94,5.9519]
[1747771893568,5.99505623,167.97,167.94,5.9519]
[1747771893860,0.04375623,167.97,167.93,5.9525]
[1747771894057,5.9517,167.96,167.93,5.9525]
[1747771894251,5.9517,167.96,167.92,0.04165274]
[1747771895068,5.99495623,167.97,167.94,5.9519]
[1747771895362,5.99495623,167.97,167.92,0.04165274]
[1747771895564,0.04375623,167.97,167.95,5.9516]
[1747771896263,5.99505623,167.97,167.94,5.952]
[1747771896465,5.99505623,167.97,167.92,0.04165274]
[1747771896667,0.04375623,167.97,167.92,0.04165274]
[1747771898266,5.9525,167.93,167.92,0.04165274]
[1747771901264,5.9523,167.94,167.92,0.04165274]
[1747771901469,2.0638,167.96,167.92,0.04165274]
[1747771901768,2.0638,167.96,167.92,5.99435274]
[1747771902369,5.9523,167.94,167.92,5.99435274]
[1747771902669,2.0638,167.96,167.92,5.99435274]
[1747771902974,5.9524,167.94,167.92,0.04165274]
[1747771904373,5.952,167.95,167.92,5.99425274]
[1747771904573,2.0638,167.96,167.92,5.99425274]
[1747771904872,5.9519,167.95,167.92,5.99425274]
[1747771905068,2.0638,167.96,167.93,5.9523]
[1747771905282,0.04375623,167.97,167.92,0.04165274]
[1747771905471,5.9518,167.96,167.92,0.04165274]
[1747771906172,5.9518,167.96,167.93,5.9522]
[1747771906574,5.9518,167.96,167.92,0.04165274]
[1747771906776,5.99485623,167.97,167.92,0.04165274]
[1747771907074,0.04375623,167.97,167.92,0.04165274]
[1747771907375,0.04375623,167.97,167.96,5.9514]
[1747771910877,6.1427,168.06,167.96,9.90389293]
[1747771911076,6.1427,168.06,168.04,5.9483]
[1747771911379,6.1427,168.06,167.98,9.90389293]
[1747771911581,6.1427,168.06,168.01,5.9496]
[1747771911771,6.1427,168.06,167.97,103.1]
[1747771911974,0.04003327,168.03,168.0,0.03938263]
[1747771912778,0.04003327,168.03,168.0,5.98938263]
[1747771913579,0.04003327,168.03,168.01,5.9496]
[1747771914377,0.04003327,168.03,168.02,5.9493]
[1747771916473,0.04003327,168.03,168.0,0.03938263]
[1747771917269,5.98923327,168.03,168.0,0.03938263]
[1747771917779,0.04003327,168.03,168.0,0.03938263]
[1747771917977,0.04003327,168.03,168.02,5.9493]
[1747771918279,0.04003327,168.03,168.0,0.03938263]
[1747771918482,0.04003327,168.03,168.0,5.98918263]
[1747771918978,0.04003327,168.03,168.0,0.03938263]
[1747771919280,0.04003327,168.03,168.01,5.9496]
[1747771919471,0.04003327,168.03,168.0,0.03938263]
[1747771920079,0.04003327,168.03,168.01,5.9497]
[1747771920579,0.04003327,168.03,168.0,0.03938263]
[1747771920983,0.04003327,168.03,168.01,5.9494]
[1747771921777,0.04003327,168.03,168.02,5.9493]
[1747771923175,0.04003327,168.03,168.01,5.9496]
[1747771923574,0.04003327,168.03,168.0,0.03938263]
[1747771924382,0.04003327,168.03,168.0,5.98918263]
[1747771924585,0.04003327,168.03,168.0,0.03938263]
[1747771924777,5.98903327,168.03,168.0,0.03938263]
[1747771925384,5.98903327,168.03,168.0,5.98908263]
[1747771925878,0.04003327,168.03,168.0,0.03938263]
[1747771926078,0.04003327,168.03,168.01,5.9496]
[1747771928484,5.98903327,168.03,168.0,5.98928263]
[1747771929586,0.04003327,168.03,168.01,5.9495]
[1747771930487,0.04003327,168.03,168.02,5.9493]
[1747771934787,0.04003327,168.03,168.02,108.7693]
[1747771935690,5.9462,168.11,168.08,5.9471]
[1747771935993,2.1078,168.12,168.02,112.72389293]
[1747771936192,2.1078,168.12,168.06,5.9477]
[1747771936492,5.9474,168.08,168.02,102.82]
[1747771936690,0.03988965,168.07,168.05,5.948]
[1747771936885,0.03988965,168.07,168.03,0.0432259]
[1747771937190,0.03988965,168.07,168.05,5.948]
[1747771938093,0.03988965,168.07,168.02,96.8912259]
[1747771938992,0.03988965,168.07,168.04,5.9484]
[1747771939187,0.03988965,168.07,168.04,5.98778493]
[1747771939393,0.03988965,168.07,168.04,0.03938493]
[1747771939585,0.03988965,168.07,168.05,5.9481]
[1747771939788,0.03988965,168.07,168.04,0.03938493]
[1747771941394,0.03988965,168.07,168.05,5.9481]
[1747771942496,0.03988965,168.07,168.06,5.9479]
[1747771942993,0.03988965,168.07,168.05,5.9481]
[1747771943196,0.03988965,168.07,168.04,0.03938493]
[1747771943799,0.03988965,168.07,168.04,5.98788493]
[1747771944004,0.03988965,168.07,168.04,0.03938493]
[1747771944500,5.9483,168.05,168.04,0.03938493]
[1747771948798,2.0609,168.06,168.04,0.03938493]
[1747771949001,0.03988965,168.07,168.04,0.03938493]
[1747771949821,0.03988965,168.07,168.05,5.9483]
[1747771951000,0.03988965,168.07,168.04,0.03938493]
[1747771951204,0.03988965,168.07,167.96,11.9029]
[1747771951205,0.03988965,168.07,167.95,172.51008746]
[1747771951500,102.82,168.06,167.95,172.51008746]
[1747771951702,102.82,168.06,167.99,5.9502]
[1747771951901,5.949,168.03,167.95,172.51008746]
[1747771952203,0.0426112,168.01,167.97,0.04559475]
[1747771952792,0.0426112,168.01,168.0,5.95]
[1747771957203,0.0426112,168.01,168.0,108.77]
[1747771969413,5.9477,168.07,168.05,5.9481]
[1747771969616,102.6,168.1,168.0,102.82]
[1747771969813,5.9476,168.07,168.0,102.82]
[1747771970114,5.9476,168.07,168.04,5.9486]
[1747771970303,5.9476,168.07,168.0,102.82]
[1747771970509,0.04555437,168.05,168.02,0.04102204]
[1747771971615,0.04555437,168.05,168.04,5.9483]
[1747771973018,0.04555437,168.05,168.02,0.04102204]
[1747771973519,5.99405437,168.05,168.03,5.9489]
[1747771974114,0.04555437,168.05,168.02,0.04102204]
[1747771974614,102.64555437,168.05,167.96,102.6]
[1747771974817,4.0195,168.04,167.96,102.6]
[1747771975113,4.0195,168.04,167.95,5.9518]
[1747771975320,5.9508,167.98,167.93,1.27097296]
[1747771975521,0.04057559,167.97,167.94,0.04128544]
[1747771975816,0.04057559,167.97,167.95,5.9515]
[1747771976323,0.04057559,167.97,167.96,5.9515]
[1747771976715,0.04057559,167.97,167.95,5.9518]
[1747771977621,0.04057559,167.97,167.96,5.9515]
[1747771977920,0.04057559,167.97,167.94,0.04128544]
[1747771978114,0.04057559,167.97,167.96,5.9515]
[1747771979723,0.04057559,167.97,167.95,5.9517]
[1747771980618,0.04057559,167.97,167.94,0.04128544]
[1747771981014,5.9515,167.96,167.94,0.04128544]
[1747771981315,0.04057559,167.97,167.94,0.04128544]
[1747771981516,0.04057559,167.97,167.95,5.9518]
[1747771982422,5.99177559,167.97,167.94,5.99328544]
[1747771985413,5.9515,167.96,167.94,0.04128544]
[1747771985620,0.04057559,167.97,167.94,0.04128544]
[1747771986326,5.9517,167.96,167.94,0.04128544]
[1747771987527,5.9518,167.95,167.94,0.04128544]
[1747771988232,5.953,167.92,167.85,112.54389293]
[1747771988733,5.953,167.92,167.88,5.9541]
[1747771988924,5.9533,167.91,167.88,5.9541]
[1747771989223,5.99127103,167.91,167.88,5.99337209]
[1747771989531,5.9543,167.88,167.81,103.91097296]
[1747771989922,5.9543,167.88,167.84,5.9555]
[1747771990120,4.0124,167.94,167.83,9.90389293]
[1747771990323,102.66,167.93,167.83,9.90389293]
[1747771990530,0.0409789,167.9,167.87,5.9543]
[1747771990926,0.0409789,167.9,167.86,0.03977304]
[1747771991231,5.9945789,167.9,167.86,5.99447304]
[1747771991429,5.9945789,167.9,167.86,0.03977304]
[1747771991835,5.9945789,167.9,167.86,5.99467304]
[1747771992032,0.0409789,167.9,167.86,0.03977304]
[1747771992530,0.0409789,167.9,167.87,5.9546]
[1747771992830,0.0409789,167.9,167.86,0.03977304]
[1747771993232,0.0409789,167.9,167.87,5.9546]
[1747771993433,5.9946789,167.9,167.86,0.03977304]
[1747771993620,5.9946789,167.9,167.86,5.99457304]
[1747771994133,0.0409789,167.9,167.87,5.9546]
[1747771995237,0.0409789,167.9,167.88,5.9543]
[1747771999434,0.0409789,167.9,167.86,0.03977304]
[1747772000037,5.9541,167.89,167.86,0.03977304]
[1747772000442,0.0409789,167.9,167.86,0.03977304]
[1747772000630,0.0409789,167.9,167.88,5.954]
[1747772001433,11.00108966,168.03,167.88,9.90389293]
[1747772001638,3.9833,167.97,167.9,9.90389293]
[1747772002438,0.0419286,167.95,167.92,5.99670355]
[1747772002939,0.0419286,167.95,167.92,0.04400355]
[1747772003432,0.0419286,167.95,167.93,9.90389293]
[1747772003637,0.0419286,167.95,167.94,5.9522]
[1747772005339,3.9451,168.03,167.93,9.90389293]
[1747772005547,3.9451,168.03,167.96,9.90389293]
[1747772005734,9.8943,168.03,167.96,9.90389293]
[1747772006140,3.9451,168.03,167.96,9.90389293]
[1747772006340,0.04549131,168.01,167.98,0.04111887]
[1747772006540,0.04549131,168.01,167.99,5.9504]
[1747772007541,0.04549131,168.01,167.98,5.99171887]
[1747772007846,0.04549131,168.01,167.98,0.04111887]
[1747772008142,5.99529131,168.01,167.98,0.04111887]
[1747772008446,0.04549131,168.01,167.98,0.04111887]
[1747772009143,5.99539131,168.01,167.98,0.04111887]
[1747772009545,0.04549131,168.01,167.98,0.04111887]
[1747772009736,0.04549131,168.01,167.98,5.99161887]
[1747772010941,0.04549131,168.01,167.98,0.04111887]
[1747772011446,5.9504,167.99,167.98,0.04111887]
[1747772012246,5.9512,167.97,167.93,5.9524]
[1747772012444,13.84899293,168.03,167.9,102.4]
[1747772012742,102.4,168.0,167.9,102.4]
[1747772012945,102.4,168.0,167.92,5.9526]
[1747772013143,102.4,168.0,167.9,102.4]
[1747772013445,5.9522,167.94,167.93,0.04012265]
[1747772013940,4.0701,167.96,167.86,616.96]
[1747772014143,5.9528,167.93,167.89,5.9538]
[1747772014450,102.4,167.95,167.86,102.4]
[1747772014638,5.9531,167.92,167.88,5.9542]
[1747772014839,5.9944258,167.92,167.88,5.99905212]
[1747772015241,0.0413258,167.92,167.89,5.9537]
[1747772015946,0.0413258,167.92,167.9,5.9535]
[1747772016145,0.0413258,167.92,167.88,0.04485212]
[1747772016742,0.0413258,167.92,167.91,5.9532]
[1747772021948,0.0413258,167.92,167.9,5.9535]
[1747772022652,0.0413258,167.92,167.89,5.9537]
[1747772024046,5.9942258,167.92,167.89,5.9537]
[1747772024548,0.0413258,167.92,167.88,5.99905212]
[1747772024753,102.14,167.91,167.79,102.14]
[1747772024987,3.9686,167.9,167.79,102.14]
[1747772025154,5.9546,167.88,167.79,102.14]
[1747772025455,3.9686,167.9,167.8,9.90389293]
[1747772025655,1.964,167.9,167.8,9.90389293]
[1747772025856,1.964,167.9,167.83,0.03844804]
[1747772025857,0.03992099,167.87,167.83,0.03844804]
[1747772026355,0.03992099,167.87,167.85,5.9551]
[1747772026756,0.03992099,167.87,167.83,0.03844804]
[1747772026956,0.03992099,167.87,167.84,5.9555]
[1747772027160,5.99482099,167.87,167.84,5.9555]
[1747772027461,0.03992099,167.87,167.83,0.03844804]
[1747772028162,102.19992099,167.87,167.83,0.03844804]
[1747772028659,5.9557,167.84,167.83,0.03844804]
[1747772028957,9.90389293,167.86,167.75,102.16]
[1747772029258,5.9571,167.8,167.76,5.9583]
[1747772029758,13.89779293,167.86,167.76,5.9583]
[1747772029960,5.9568,167.81,167.79,0.04103101]
[1747772030257,0.04327259,167.83,167.79,0.04103101]
[1747772030656,112.10716552,167.83,167.79,0.04103101]
[1747772030861,1.9765,167.82,167.71,102.16]
[1747772031063,1.9765,167.82,167.72,9.90389293]
[1747772031463,7.933,167.82,167.72,9.90389293]
[1747772031766,0.0421797,167.79,167.75,0.04585193]
[1747772032265,0.0421797,167.79,167.78,5.9578]
[1747772032659,0.0421797,167.79,167.75,0.04585193]
[1747772033363,0.0421797,167.79,167.76,5.9583]
[1747772033563,0.0421797,167.79,167.75,0.04585193]
[1747772034166,0.0421797,167.79,167.77,5.9581]
[1747772035273,0.0421797,167.79,167.75,0.04585193]
[1747772035861,0.0421797,167.79,167.78,5.9578]
[1747772036366,0.0421797,167.79,167.75,0.04585193]
[1747772036766,102.2421797,167.79,167.75,0.04585193]
[1747772037068,5.9585,167.76,167.75,0.04585193]
[1747772037560,5.9442,167.78,167.75,0.04585193]
[1747772038167,5.9442,167.78,167.67,102.2]
[1747772038168,5.9594,167.74,167.67,102.2]
[1747772038368,5.9594,167.74,167.66,9.90389293]